bitfinex-derivatives/quotes_SOLF0:USTF0_20240905
["timestamp","ask_amount","ask_price","bid_price","bid_amount"]
[1725523654844,0.05719951,133.28,133.25,23.10141338]
[1725523655045,2.707,133.35,133.27,23.05]
[1725523655243,26.77514931,133.36,133.29,23.05]
[1725523655544,3.7498,133.35,133.29,23.05]
[1725523656047,3.7498,133.35,133.31,3.7506]
[1725523656249,0.04858444,133.34,133.32,0.0572438]
[1725523656749,0.04858444,133.34,133.33,3.7502]
[1725523657653,25.7923,133.41,133.34,3.7498]
[1725523658146,24.4756,133.41,133.35,3.7494]
[1725523658747,0.04737399,133.39,133.37,0.05681433]
[1725523659050,3.7488,133.38,133.37,0.05681433]
[1725523660253,0.04737399,133.39,133.37,0.05681433]
[1725523660749,3.7488,133.38,133.37,0.05681433]
[1725523662051,3.7497,133.35,133.31,3.7507]
[1725523663046,0.05509733,133.34,133.32,0.05477419]
[1725523664252,0.05509733,133.34,133.32,3.80517419]
[1725523665154,0.05509733,133.34,133.32,0.05477419]
[1725523666858,3.7502,133.33,133.32,0.05477419]
[1725523667247,3.751,133.31,133.27,3.7518]
[1725523667544,23.05,133.34,133.25,2.7752]
[1725523667752,23.05,133.34,133.26,3.752]
[1725523667948,3.7512,133.3,133.26,3.752]
[1725523668345,0.05404542,133.29,133.27,0.05426337]
[1725523668545,0.05404542,133.29,133.27,3.80606337]
[1725523669950,0.05404542,133.29,133.27,0.05426337]
[1725523670860,0.05404542,133.29,133.27,3.80606337]
[1725523672762,0.05404542,133.29,133.28,3.7516]
[1725523673964,0.05404542,133.29,133.27,3.80606337]
[1725523675259,0.05404542,133.29,133.27,0.05426337]
[1725523675462,0.05404542,133.29,133.28,3.7516]
[1725523675663,0.05404542,133.29,133.27,0.05426337]
[1725523676758,0.05404542,133.29,133.28,3.7516]
[1725523677153,0.05404542,133.29,133.28,7.4421236]
[1725523677565,0.05404542,133.29,133.28,3.7516]
[1725523681066,0.05404542,133.29,133.27,3.80606337]
[1725523686269,3.80544542,133.29,133.27,3.80606337]
[1725523686467,3.77871621,133.29,133.27,0.05426337]
[1725523687370,0.05404542,133.29,133.27,0.05426337]
[1725523688168,0.05404542,133.29,133.27,3.80616337]
[1725523688368,0.05404542,133.29,133.27,0.05426337]
[1725523688573,3.80554542,133.29,133.27,0.05426337]
[1725523689571,3.7516,133.28,133.27,0.05426337]
[1725523689761,0.05404542,133.29,133.27,0.05426337]
[1725523689962,0.05404542,133.29,133.27,3.80616337]
[1725523691071,0.05404542,133.29,133.27,0.05426337]
[1725523693369,3.80544542,133.29,133.27,0.05426337]
[1725523695576,3.7516,133.28,133.27,0.05426337]
[1725523698277,3.7526,133.25,133.22,3.7531]
[1725523699275,3.80502835,133.25,133.22,3.80054301]
[1725523699980,0.05242835,133.25,133.23,3.753]
[1725523701181,0.05242835,133.25,133.22,26.85064301]
[1725523701682,3.80502835,133.25,133.22,26.85064301]
[1725523701877,0.05242835,133.25,133.23,3.753]
[1725523702188,3.7514,133.29,133.23,23.05]
[1725523702783,3.7514,133.29,133.25,3.7523]
[1725523703374,0.05604208,133.28,133.26,0.05451163]
[1725523704085,0.05604208,133.28,133.26,3.80661163]
[1725523704688,3.7519,133.27,133.26,0.05451163]
[1725523704877,0.05604208,133.28,133.26,0.05451163]
[1725523705381,3.80784208,133.28,133.26,0.05451163]
[1725523706285,3.7519,133.27,133.26,0.05451163]
[1725523723791,3.80784208,133.28,133.26,0.05451163]
[1725523724292,0.05604208,133.28,133.26,0.05451163]
[1725523724492,0.05604208,133.28,133.26,3.80641163]
[1725523724693,0.05604208,133.28,133.26,0.05451163]
[1725523724897,0.05604208,133.28,133.27,9.22]
[1725523726098,0.05604208,133.28,133.27,12.9719]
[1725523726295,9.22,133.33,133.27,12.89389036]
[1725523726597,9.22,133.32,133.29,3.7511]
[1725523727394,9.26852618,133.32,133.29,3.80235474]
[1725523728193,0.04852618,133.32,133.3,3.7511]
[1725523731492,0.04852618,133.32,133.29,3.80235474]
[1725523732089,0.04852618,133.32,133.3,3.7511]
[1725523732896,0.04852618,133.32,133.31,3.7508]
[1725523737298,0.04852618,133.32,133.3,3.7509]
[1725523739098,0.04852618,133.32,133.29,0.05125474]
[1725523739099,9.22,133.31,133.29,3.80245474]
[1725523741103,9.22,133.31,133.3,3.7511]
[1725523741299,0.04852618,133.32,133.3,3.7511]
[1725523741606,0.04852618,133.32,133.29,0.05125474]
[1725523742108,3.79922618,133.32,133.29,3.80245474]
[1725523743905,0.04852618,133.32,133.3,3.751]
[1725523745401,0.04852618,133.32,133.29,0.05125474]
[1725523746308,0.04852618,133.32,133.3,3.7511]
[1725523749811,0.04852618,133.32,133.31,3.7508]
[1725523754412,3.66755855,133.36,133.33,3.7502]
[1725523754613,9.22,133.37,133.33,3.7502]
[1725523755219,3.7496,133.36,133.33,3.7502]
[1725523755414,3.70403238,133.35,133.33,3.7502]
[1725523755619,3.70403238,133.35,133.33,3.80752665]
[1725523755917,0.05376983,133.36,133.35,3.7497]
[1725523757019,0.05376983,133.36,133.34,3.7498]
[1725523758014,0.05376983,133.36,133.35,3.7497]
[1725523760021,95.63997479,133.4,133.35,9.22]
[1725523760622,95.63997479,133.4,133.37,3.749]
[1725523761113,95.68893687,133.4,133.37,3.80360829]
[1725523762722,0.04896208,133.4,133.38,9.22]
[1725523763122,0.04896208,133.4,133.38,10.5933]
[1725523763324,0.04896208,133.4,133.39,3.7485]
[1725523764717,9.22,133.44,133.4,3.7481]
[1725523764923,12.9673,133.44,133.38,10.5933]
[1725523765516,12.9673,133.44,133.4,3.7481]
[1725523765716,0.04916247,133.43,133.41,0.04741789]
[1725523771130,0.04916247,133.43,133.42,3.7477]
[1725523771328,0.04916247,133.43,133.42,12.9677]
[1725523774838,0.04916247,133.43,133.41,3.79531789]
[1725523775024,0.04916247,133.43,133.41,0.04741789]
[1725523775936,0.04916247,133.43,133.41,3.79541789]
[1725523776435,3.79666247,133.43,133.41,3.79541789]
[1725523777037,0.04916247,133.43,133.41,0.04741789]
[1725523777934,3.7477,133.42,133.41,0.04741789]
[1725523780635,3.749,133.38,133.35,1.4187]
[1725523781047,9.22,133.4,133.34,12.9698]
[1725523781344,3.7491,133.38,133.34,12.9698]
[1725523781742,0.0484836,133.37,133.35,0.04744457]
[1725523782246,3.7975836,133.37,133.35,0.04744457]
[1725523783547,3.7494,133.36,133.35,0.04744457]
[1725523792365,0.0484836,133.37,133.35,0.04744457]
[1725523793055,3.7976836,133.37,133.35,0.04744457]
[1725523795859,3.7494,133.36,133.35,0.04744457]
[1725523800371,3.7977836,133.37,133.35,0.04744457]
[1725523800572,0.0484836,133.37,133.35,0.04744457]
[1725523801071,0.0484836,133.37,133.35,9.26744457]
[1725523802173,0.0484836,133.37,133.36,3.7494]
[1725523802568,0.0484836,133.37,133.35,0.04744457]
[1725523803376,3.7494,133.36,133.35,0.04744457]
[1725523804271,3.7976836,133.37,133.35,0.04744457]
[1725523804476,0.0484836,133.37,133.35,0.04744457]
[1725523804866,3.7975836,133.37,133.35,0.04744457]
[1725523809873,3.7494,133.36,133.35,0.04744457]
[1725523812474,0.0484836,133.37,133.35,0.04744457]
[1725523815286,3.7494,133.36,133.35,0.04744457]
[1725523822489,12.9694,133.36,133.35,0.04744457]
[1725523823392,3.7502,133.34,133.3,12.9709]
[1725523824491,0.05632325,133.33,133.31,0.05766196]
[1725523825389,3.80672325,133.33,133.31,0.05766196]
[1725523828098,3.7505,133.32,133.31,0.05766196]
[1725523833096,12.9705,133.32,133.31,0.05766196]
[1725523834500,9.22,133.32,133.23,9.22]
[1725523834797,9.22,133.28,133.23,9.22]
[1725523835005,3.7521,133.27,133.23,12.9729]
[1725523835204,9.22,133.3,133.24,9.22]
[1725523835400,3.7518,133.28,133.26,0.0570351]
[1725523835606,3.80189751,133.28,133.26,0.0570351]
[1725523837305,0.05009751,133.28,133.26,0.0570351]
[1725523840701,3.80189751,133.28,133.26,0.0570351]
[1725523843408,0.05009751,133.28,133.26,0.0570351]
[1725523844104,3.80189751,133.28,133.26,0.0570351]
[1725523845210,3.7519,133.27,133.26,0.0570351]
[1725523847007,3.80189751,133.28,133.26,0.0570351]
[1725523848610,3.7519,133.27,133.26,0.0570351]
[1725523850007,12.9719,133.27,133.26,0.0570351]
[1725523851608,16.79677614,133.27,133.26,0.0570351]
[1725523852308,3.7519,133.27,133.26,0.0570351]
[1725523852703,16.69411903,133.27,133.26,0.0570351]
[1725523856218,12.9719,133.27,133.26,0.0570351]
[1725523856421,3.7519,133.27,133.26,0.0570351]
[1725523859523,7.47233806,133.27,133.26,0.0570351]
[1725523862026,3.7519,133.27,133.26,0.0570351]
[1725523862625,7.55595904,133.27,133.26,0.0570351]
[1725523864827,3.80189751,133.28,133.26,0.0570351]
[1725523865623,7.48619983,133.28,133.26,0.0570351]
[1725523866818,3.7519,133.27,133.26,0.0570351]
[1725523870127,12.9719,133.27,133.26,0.0570351]
[1725523871626,3.73439983,133.28,133.26,0.0570351]
[1725523872030,3.73439983,133.28,133.26,3.8092351]
[1725523872427,0.05009751,133.28,133.26,0.0570351]
[1725523872629,0.05009751,133.28,133.26,3.8090351]
[1725523875831,0.05009751,133.28,133.26,0.0570351]
[1725523878332,13.02189751,133.28,133.26,0.0570351]
[1725523879234,12.9719,133.27,133.26,0.0570351]
[1725523896743,0.05009751,133.28,133.26,0.0570351]
[1725523896944,9.22,133.27,133.26,0.0570351]
[1725523898548,12.9719,133.27,133.26,0.0570351]
[1725523904454,3.7529,133.24,133.21,1.3272]
[1725523904653,3.81438654,133.23,133.21,1.3272]
[1725523905653,3.87136201,133.23,133.21,1.37589396]
[1725523908558,7.62466201,133.23,133.21,1.37589396]
[1725523910253,3.7533,133.22,133.21,0.04869396]
[1725523910456,12.9733,133.22,133.21,0.04869396]
[1725523914357,7.41805514,133.22,133.21,0.04869396]
[1725523914658,16.63805514,133.22,133.21,0.04869396]
[1725523916154,0.05697547,133.23,133.21,0.04869396]
[1725523916155,3.81017547,133.23,133.21,0.04869396]
[1725523916854,3.73225452,133.22,133.21,0.04869396]
[1725523920163,0.05697547,133.23,133.21,0.04869396]
[1725523920662,3.83335836,133.22,133.21,0.04869396]
[1725523922362,3.81007547,133.23,133.21,0.04869396]
[1725523923050,7.51914726,133.23,133.21,0.04869396]
[1725523925459,9.22,133.22,133.21,0.04869396]
[1725523926360,12.9733,133.22,133.21,0.04869396]
[1725523928563,3.7542,133.19,133.17,2.748]
[1725523928765,12.9742,133.19,133.17,2.748]
[1725523929460,13.02514282,133.19,133.17,2.79969577]
[1725523931164,3.7545,133.18,133.17,0.05169577]
[1725523933765,12.9745,133.18,133.17,0.05169577]
[1725523934163,16.76018209,133.18,133.17,0.05169577]
[1725523938562,13.02524282,133.19,133.17,0.05169577]
[1725523938762,16.85261661,133.19,133.17,0.05169577]
[1725523941969,0.05094282,133.19,133.17,0.05169577]
[1725523944367,3.80514282,133.19,133.17,0.05169577]
[1725523944568,9.22,133.18,133.17,0.05169577]
[1725523945465,12.9745,133.18,133.17,0.05169577]
[1725523947264,9.22,133.18,133.17,0.05169577]
[1725523950771,3.80524282,133.19,133.17,0.05169577]
[1725523951065,0.05094282,133.19,133.17,0.05169577]
[1725523951272,1.2906,133.26,133.17,9.22]
[1725523951470,3.7526,133.25,133.21,3.7535]
[1725523951667,12.9726,133.25,133.21,3.7535]
[1725523952173,16.79995776,133.25,133.19,10.5913]
[1725523952368,0.05577777,133.23,133.21,0.05491253]
[1725523952569,9.27577777,133.23,133.21,0.05491253]
[1725523954872,13.02887777,133.23,133.21,0.05491253]
[1725523956275,0.05577777,133.23,133.21,3.80831253]
[1725523957573,9.27577777,133.23,133.21,0.05491253]
[1725523959477,13.02897777,133.23,133.21,0.05491253]
[1725523961175,1.2965,133.29,133.21,0.05491253]
[1725523961176,9.22,133.29,133.22,9.22]
[1725523961573,7.54205047,133.28,133.24,3.7526]
[1725523962081,0.05001833,133.27,133.25,0.05305755]
[1725523962275,0.05001833,133.27,133.25,3.80545755]
[1725523966283,0.05001833,133.27,133.26,3.7522]
[1725523970284,15.33615901,133.4,133.26,10.0]
[1725523970285,7.83905901,133.4,133.26,10.0]
[1725523970487,169.2189169,133.49,133.27,1.4063]
[1725523970488,9.22,133.39,133.27,1.4063]
[1725523970688,9.22,133.39,133.32,9.22]
[1725523970891,13.06326677,133.39,133.37,3.749]
[1725523971091,9.22,133.39,133.37,3.749]
[1725523971286,0.04938268,133.39,133.37,3.8010885]
[1725523972795,0.04938268,133.39,133.38,3.7488]
[1725523974298,0.04938268,133.39,133.38,12.9688]
[1725523975293,3.7469,133.46,133.42,3.7476]
[1725523975493,3.79265519,133.45,133.42,9.22]
[1725523975793,13.2954,133.48,133.42,9.22]
[1725523975993,3.7465,133.47,133.43,3.7474]
[1725523976393,0.05245255,133.46,133.44,0.04759812]
[1725523976597,3.78928027,133.45,133.44,0.04759812]
[1725523976895,0.05245255,133.46,133.44,0.04759812]
[1725523977194,0.05245255,133.46,133.44,3.79469812]
[1725523978297,0.05245255,133.46,133.44,0.04759812]
[1725523978495,0.05245255,133.46,133.45,12.9669]
[1725523979498,0.05245255,133.46,133.45,3.7469]
[1725523980996,0.05245255,133.46,133.44,3.79459812]
[1725523981199,0.05245255,133.46,133.44,0.04759812]
[1725523983700,0.05245255,133.46,133.45,9.22]
[1725523984100,3.80348296,133.52,133.45,9.22]
[1725523984299,7.513,133.58,133.48,9.22]
[1725523984300,2.6792,133.57,133.48,9.22]
[1725523984601,3.7448,133.53,133.48,9.22]
[1725523984797,3.7448,133.53,133.49,3.7456]
[1725523985004,0.04937443,133.52,133.5,0.04821031]
[1725523985407,9.26937443,133.52,133.5,0.04821031]
[1725523985996,3.79437443,133.52,133.5,0.04821031]
[1725523989809,0.04937443,133.52,133.5,0.04821031]
[1725523990603,3.79437443,133.52,133.5,0.04821031]
[1725523992412,0.04937443,133.52,133.5,0.04821031]
[1725523993511,3.79447443,133.52,133.5,0.04821031]
[1725523996211,3.7452,133.51,133.5,0.04821031]
[1725523996907,3.79437443,133.52,133.5,0.04821031]
[1725524000508,3.7452,133.51,133.5,0.04821031]
[1725524003012,3.79447443,133.52,133.5,0.04821031]
[1725524004014,3.7452,133.51,133.5,0.04821031]
[1725524004612,3.79437443,133.52,133.5,0.04821031]
[1725524005618,3.7452,133.51,133.5,0.04821031]
[1725524006110,0.04937443,133.52,133.5,0.04821031]
[1725524006320,3.79447443,133.52,133.5,0.04821031]
[1725524007317,0.04937443,133.52,133.5,0.04821031]
[1725524008226,3.79437443,133.52,133.5,0.04821031]
[1725524010323,0.04937443,133.52,133.5,0.04821031]
[1725524011419,3.79427443,133.52,133.5,0.04821031]
[1725524012325,0.04937443,133.52,133.5,0.04821031]
[1725524012825,3.79437443,133.52,133.5,0.04821031]
[1725524013017,0.04937443,133.52,133.5,0.04821031]
[1725524013325,3.7452,133.51,133.5,0.04821031]
[1725524020234,3.79437443,133.52,133.5,0.04821031]
[1725524022229,3.7452,133.51,133.5,0.04821031]
[1725524022620,0.04937443,133.52,133.5,0.04821031]
[1725524022820,3.79437443,133.52,133.5,0.04821031]
[1725524025131,3.7452,133.51,133.5,0.04821031]
[1725524037734,3.79437443,133.52,133.5,0.04821031]
[1725524039537,0.04937443,133.52,133.5,0.04821031]
[1725524040749,3.7452,133.51,133.5,0.04821031]
[1725524043653,3.76545522,133.54,133.42,1.2911]
[1725524043654,3.7467,133.46,133.42,1.2911]
[1725524043854,1.309,133.53,133.42,1.2911]
[1725524044052,0.2755087,133.52,133.42,1.2911]
[1725524044262,5.5097562,133.52,133.42,1.2911]
[1725524044456,5.2342475,133.52,133.42,5.0388]
[1725524044658,0.27551396,133.51,133.42,5.0388]
[1725524044963,0.05079285,133.48,133.45,0.0495443]
[1725524045363,3.7465,133.47,133.45,0.0495443]
[1725524045560,0.05079285,133.48,133.45,0.0495443]
[1725524045760,3.7466,133.46,133.45,0.0495443]
[1725524046858,3.7476,133.43,133.38,1.4994422]
[1725524047262,3.7476,133.43,133.37,2.7076]
[1725524047560,3.7478,133.42,133.37,2.7076]
[1725524047864,3.77117606,133.44,133.37,2.7076]
[1725524048062,0.05637405,133.41,133.38,0.04927738]
[1725524048263,3.8790866,133.41,133.38,0.04850051]
[1725524048461,0.04996948,133.41,133.38,0.04850051]
[1725524049168,7.45387949,133.4,133.38,0.04850051]
[1725524049560,3.7485,133.4,133.38,0.04850051]
[1725524050865,3.7485,133.39,133.38,0.04850051]
[1725524062867,3.72722679,133.41,133.38,0.04850051]
[1725524064377,3.7485,133.39,133.38,0.04850051]
[1725524068682,3.7484,133.4,133.38,0.04850051]
[1725524072584,3.7483,133.4,133.38,0.04850051]
[1725524076387,3.7485,133.39,133.38,0.04850051]
[1725524099609,3.72722679,133.41,133.38,0.04850051]
[1725524099610,3.7484,133.4,133.38,0.04850051]
[1725524100307,3.72722679,133.41,133.38,0.04850051]
[1725524100308,3.7485,133.39,133.38,0.04850051]
[1725524100503,3.72722679,133.41,133.38,0.04850051]
[1725524102209,3.7485,133.39,133.38,0.04850051]
[1725524104522,3.7484,133.4,133.38,0.04850051]
[1725524105607,7.47532679,133.41,133.38,0.04850051]
[1725524107310,3.7483,133.4,133.38,0.04850051]
[1725524109513,3.7485,133.39,133.38,0.04850051]
[1725524113011,12.9685,133.39,133.38,0.04850051]
[1725524113913,3.7485,133.39,133.38,0.04850051]
[1725524114811,3.7484,133.4,133.38,0.04850051]
[1725524115614,3.79806948,133.41,133.38,0.04850051]
[1725524115810,3.79806948,133.41,133.38,9.26850051]
[1725524116213,3.79806948,133.41,133.38,13.01720051]
[1725524120517,3.79796948,133.41,133.39,3.7483]
[1725524122426,0.04996948,133.41,133.4,3.7483]
[1725524122735,0.04996948,133.41,133.4,5.1461]
[1725524129823,3.747,133.45,133.4,1.3978]
[1725524130029,3.747,133.45,133.42,9.22]
[1725524130529,3.747,133.45,133.42,12.9675]
[1725524130724,3.79863184,133.45,133.42,13.01504693]
[1725524133138,3.7471,133.44,133.42,0.04754693]
[1725524134431,3.79863184,133.45,133.42,9.26754693]
[1725524134934,0.05163184,133.45,133.42,9.26754693]
[1725524135237,0.05163184,133.45,133.44,9.22]
[1725524136042,0.05163184,133.45,133.44,12.9671]
[1725524136340,0.05163184,133.45,133.44,3.7471]
[1725524136545,0.05163184,133.45,133.42,0.04754693]
[1725524136747,0.05163184,133.45,133.43,12.9674]
[1725524137046,0.05163184,133.45,133.42,0.04754693]
[1725524137047,0.05163184,133.45,133.42,9.26754693]
[1725524138451,3.79853184,133.45,133.42,13.01504693]
[1725524141838,0.05163184,133.45,133.42,9.26754693]
[1725524142744,0.05163184,133.45,133.43,9.22]
[1725524143441,3.79853184,133.45,133.43,12.9673]
[1725524143841,3.79853184,133.45,133.42,3.79514693]
[1725524144161,3.79853184,133.45,133.42,13.01514693]
[1725524151355,3.7474,133.43,133.42,0.04754693]
[1725524157452,0.05163184,133.45,133.42,9.26754693]
[1725524157653,0.05163184,133.45,133.44,9.22]
[1725524158250,0.05163184,133.45,133.44,12.9671]
[1725524162058,108.54216439,133.5,133.47,3.7462]
[1725524162460,108.54216439,133.5,133.48,9.22]
[1725524162658,1.3965,133.54,133.48,9.22]
[1725524162965,1.3965,133.54,133.51,9.22]
[1725524163162,5.09009916,133.54,133.5,9.22]
[1725524163358,0.04552772,133.53,133.5,9.22]
[1725524163961,0.04552772,133.53,133.49,0.05128128]
[1725524163962,3.72425024,133.53,133.49,0.05128128]
[1725524164158,0.04552772,133.53,133.49,0.05128128]
[1725524164466,3.7454,133.51,133.49,0.05128128]
[1725524164665,7.43648608,133.51,133.49,0.05128128]
[1725524165167,3.7455,133.5,133.49,0.05128128]
[1725524174171,3.7453,133.51,133.49,0.05128128]
[1725524176268,3.7449,133.52,133.49,0.05128128]
[1725524176468,3.7449,133.52,133.49,3.79688128]
[1725524176868,3.7449,133.52,133.49,0.05128128]
[1725524178574,3.7449,133.52,133.49,3.79698128]
[1725524180581,0.04552772,133.53,133.49,0.05128128]
[1725524180771,0.04552772,133.53,133.5,9.22]
[1725524181469,3.7449,133.52,133.5,9.22]
[1725524181875,3.7449,133.52,133.49,3.79688128]
[1725524182476,3.7452,133.51,133.49,3.79688128]
[1725524184576,0.04552772,133.53,133.49,0.05128128]
[1725524186081,3.7453,133.51,133.49,0.05128128]
[1725524187181,0.04552772,133.53,133.49,0.05128128]
[1725524187182,3.7451,133.52,133.49,3.79698128]
[1725524189286,3.7452,133.51,133.49,3.79698128]
[1725524189481,0.04552772,133.53,133.49,3.79698128]
[1725524189981,3.745,133.52,133.49,3.79698128]
[1725524191086,3.79032772,133.53,133.5,3.7454]
[1725524191285,3.79032772,133.53,133.5,12.9654]
[1725524191486,3.79032772,133.53,133.51,9.22]
[1725524191487,0.04552772,133.53,133.51,9.22]
[1725524191681,0.04552772,133.53,133.52,12.9649]
[1725524194689,0.04552772,133.53,133.49,0.05128128]
[1725524194885,0.04552772,133.53,133.51,9.22]
[1725524195583,0.04552772,133.53,133.51,12.9652]
[1725524195786,0.04552772,133.53,133.49,0.05128128]
[1725524195979,3.79032772,133.53,133.5,12.9654]
[1725524199191,0.04552772,133.53,133.51,9.22]
[1725524199785,0.04552772,133.53,133.51,12.965]
[1725524199991,0.04552772,133.53,133.51,9.22]
[1725524200892,0.04552772,133.53,133.51,12.9651]
[1725524201794,0.04552772,133.53,133.49,0.05128128]
[1725524202000,0.04552772,133.53,133.5,9.22]
[1725524203193,0.04552772,133.53,133.49,0.05128128]
[1725524203397,0.04552772,133.53,133.49,9.27128128]
[1725524204097,3.7452,133.52,133.49,13.01698128]
[1725524204689,3.7452,133.52,133.49,3.79698128]
[1725524204896,3.7452,133.52,133.5,9.22]
[1725524205300,0.04552772,133.53,133.51,9.22]
[1725524205301,3.79032772,133.53,133.51,9.22]
[1725524208903,0.04552772,133.53,133.51,9.22]
[1725524209504,0.04552772,133.53,133.51,12.965]
[1725524211908,0.04552772,133.53,133.52,3.7449]
[1725524213011,11.35103734,133.58,133.54,3.7442]
[1725524213199,7.513,133.58,133.55,9.22]
[1725524213406,3.7436,133.57,133.54,9.22]
[1725524213807,3.7436,133.57,133.54,9.27545853]
[1725524215502,3.7436,133.57,133.54,13.01975853]
[1725524218212,3.7438,133.56,133.54,13.01975853]
[1725524218406,11.17608727,133.58,133.54,0.05545853]
[1725524219309,3.7439,133.56,133.54,0.05545853]
[1725524220306,11.17608727,133.58,133.54,0.05545853]
[1725524220912,3.7439,133.56,133.54,0.05545853]
[1725524221217,11.17608727,133.58,133.54,0.05545853]
[1725524221414,3.7441,133.55,133.54,0.05545853]
[1725524243738,2.7627,133.6,133.54,0.05545853]
[1725524243739,2.7627,133.6,133.54,9.27545853]
[1725524243944,1.3636,133.6,133.56,9.22]
[1725524244139,1.3636,133.6,133.54,0.05545853]
[1725524244140,3.7434,133.58,133.54,0.05545853]
[1725524244344,3.7434,133.58,133.55,9.22]
[1725524246041,3.7435,133.57,133.55,9.22]
[1725524246640,3.7435,133.57,133.54,13.01955853]
[1725524247036,12.89996652,133.58,133.54,0.05545853]
[1725524247242,9.22,133.57,133.54,0.05545853]
[1725524248552,3.77575016,133.58,133.54,9.27545853]
[1725524248948,3.7435,133.57,133.54,0.05545853]
[1725524249452,3.77575016,133.58,133.54,0.05545853]
[1725524249943,3.7435,133.57,133.54,0.05545853]
[1725524251644,3.7438,133.56,133.54,0.05545853]
[1725524254250,3.77575016,133.58,133.54,0.05545853]
[1725524254455,9.22,133.58,133.54,0.05545853]
[1725524254753,3.7441,133.55,133.54,0.05545853]
[1725524255246,9.22,133.58,133.54,0.05545853]
[1725524255449,3.71469994,133.57,133.54,0.05545853]
[1725524255649,9.22,133.58,133.54,0.05545853]
[1725524255848,3.70608549,133.57,133.54,0.05545853]
[1725524256049,3.7441,133.55,133.54,0.05545853]
[1725524261255,9.22,133.56,133.48,1.3126]
[1725524261452,9.22,133.52,133.47,1.3251]
[1725524261656,3.70608549,133.57,133.48,2.40150693]
[1725524261952,10.1512,133.59,133.47,5.0713]
[1725524261953,3.7454,133.51,133.47,5.0713]
[1725524262151,3.7454,133.51,133.48,2.40291786]
[1725524262353,3.7455,133.5,133.48,0.05677107]
[1725524263465,0.04869221,133.51,133.48,9.27677107]
[1725524263852,0.04869221,133.51,133.5,9.22]
[1725524264655,0.04869221,133.51,133.5,12.9655]
[1725524268555,0.04869221,133.51,133.5,3.7455]
[1725524272063,0.04869221,133.51,133.49,3.7455]
[1725524274957,0.04869221,133.51,133.5,9.22]
[1725524275767,0.04869221,133.51,133.5,12.9655]
[1725524277572,0.04869221,133.51,133.5,3.7455]
[1725524280666,1.3676,133.58,133.5,9.22]
[1725524280873,10.5675,133.59,133.53,9.22]
[1725524281067,10.5675,133.59,133.53,12.89395864]
[1725524281282,3.7436,133.57,133.54,3.7441]
[1725524281773,3.7436,133.57,133.54,3.79306169]
[1725524283676,3.7436,133.57,133.54,0.04896169]
[1725524283677,3.7439,133.56,133.54,0.04896169]
[1725524286572,3.7441,133.55,133.54,0.04896169]
[1725524291881,12.9641,133.55,133.54,0.04896169]
[1725524292378,3.7441,133.55,133.54,0.04896169]
[1725524294585,12.9641,133.55,133.54,0.04896169]
[1725524294780,3.745,133.52,133.49,6.14618797]
[1725524294977,3.745,133.52,133.49,3.7455]
[1725524295178,9.22,133.52,133.47,1.3687]
[1725524295383,9.22,133.51,133.48,6.14697467]
[1725524295584,9.22,133.51,133.48,3.7459]
[1725524295787,9.27516296,133.51,133.48,3.79671704]
[1725524295979,0.05516296,133.51,133.48,0.05081704]
[1725524296186,9.27516296,133.51,133.48,0.05081704]
[1725524297080,3.7455,133.5,133.48,0.05081704]
[1725524298884,3.7455,133.5,133.42,1.3378]
[1725524298885,0.05516296,133.51,133.42,1.3378]
[1725524299087,9.22,133.48,133.43,3.90281698]
[1725524299290,10.6397,133.5,133.44,2.40406712]
[1725524299488,3.7459,133.49,133.45,3.7469]
[1725524300087,3.79337468,133.48,133.46,0.04832367]
[1725524301791,3.7463,133.47,133.46,0.04832367]
[1725524302193,12.9663,133.47,133.46,0.04832367]
[1725524302992,3.7463,133.47,133.46,0.04832367]
[1725524303596,0.04737468,133.48,133.46,0.04832367]
[1725524305496,3.79347468,133.48,133.46,0.04832367]
[1725524306388,3.7463,133.47,133.46,0.04832367]
[1725524306799,0.04737468,133.48,133.46,0.04832367]
[1725524307298,3.79357468,133.48,133.46,0.04832367]
[1725524308601,3.7463,133.47,133.46,0.04832367]
[1725524309903,3.79347468,133.48,133.46,0.04832367]
[1725524312796,0.04737468,133.48,133.46,3.79482367]
[1725524313000,0.04737468,133.48,133.46,9.26832367]
[1725524314305,0.04737468,133.48,133.47,3.7463]
[1725524319515,0.04737468,133.48,133.46,3.79472367]
[1725524320207,0.04737468,133.48,133.47,3.7463]
[1725524320512,0.04737468,133.48,133.46,0.04832367]
[1725524321212,0.04737468,133.48,133.28,3.71309755]